[Event "58th Akiba Rubinstein B 2022"]
[Site "Polanica-Zdroj"]
[Date "2022.08.18"]
[Round "6.9"]
[White "Mocko, Maciej"]
[Black "Graff, Slawomir"]
[Result "0-1"]
[ECO "C11"]
[WhiteElo "1525"]
[BlackElo "1782"]
[Annotator "NA"]
[PlyCount "84"]
[EventDate "2022.08.13"]
[EventCountry "POL"]
[SourceTitle "playchess.com"]
[Source "ChessBase"]
[SourceQuality "1"]
[TimeControl "40/5400+30:1800+30"]

1. e4 {[%emt 0:00:02]} e6 {[%emt 0:00:07]} 2. Nc3 {[%emt 0:00:03]} d5 {[%emt 0:00:06]} 3. Nf3 {[%emt 0:00:04]} dxe4 {[%emt 0:00:49]} 4. Nxe4 {[%emt 0:00:08]} Nd7 {[%emt 0:01:31]} 5. d4 {[%emt 0:00:34]} Ngf6 {[%emt 0:00:14]} 6. Nxf6+ {[%emt 0:00:54]} Nxf6 {[%emt 0:00:06]} 7. Bd3 {[%emt 0:00:11]} c5 {[%emt 0:00:16]} 8. O-O {[%emt 0:00:47]} cxd4 {[%emt 0:00:09]} 9. Nxd4 {[%emt 0:00:14]} Bc5 {[%emt 0:00:17]} 10. Be3 {[%emt 0:03:27]} Bb6 {[%emt 0:00:22]} 11. c3 {[%emt 0:02:03]} O-O {[%emt 0:04:22]} 12. Re1 {[%emt 0:03:17]} Nd5 {[%emt 0:02:40]} 13. Qh5 {[%emt 0:01:32]} f5 {[%emt 0:05:34]} 14. Bg5 {[%emt 0:02:49]} Qd6 {[%emt 0:03:07]} 15. Nb5 {[%emt 0:03:07]} Qc5 {[%emt 0:04:34]} 16. Qe2 {[%emt 0:04:43]} Bd7 {[%emt 0:07:02]} 17. Nd4 {[%emt 0:01:49]} Rae8 {[%emt 0:02:59]} 18. Nf3 {[%emt 0:06:02]} h6 {[%emt 0:09:46]} 19. Ne5 {[%emt 0:01:24]} Bc6 {[%emt 0:01:15]} 20. Bd2 {[%emt 0:09:56]} Nf6 {[%emt 0:06:10]} 21. c4 {[%emt 0:05:30]} Be4 {[%emt 0:06:13]} 22. Bf4 {[%emt 0:24:17]} g5 {[%emt 0:06:58]} 23. Bg3 {[%emt 0:00:32]} Bxd3 {[%emt 0:09:19]} 24. Qxd3 {[%emt 0:01:46]} Rd8 {[%emt 0:05:59]} 25. Qc2 {[%emt 0:00:43]} Rd4 {[%emt 0:03:00]} 26. Rad1 {[%emt 0:07:15]} Rfd8 {[%emt 0:01:13]} 27. Rxd4 {[%emt 0:02:01]} Qxd4 {[%emt 0:02:58]} 28. Nf3 {[%emt 0:02:13]} Qd3 {[%emt 0:00:55]} 29. Qxd3 {[%emt 0:05:59]} Rxd3 {[%emt 0:00:09]} 30. h4 {[%emt 0:00:27]} Ne4 {[%emt 0:01:11]} 31. hxg5 Nxg3 {[%emt 0:04:17]} 32. Rxe6 {[%emt 0:02:12]} Rd1+ {[%emt 0:01:55]} 33. Ne1 {[%emt 0:05:49]} Ne4 {[%emt 0:00:38]} 34. Kf1 {[%emt 0:00:15]} Bxf2 {[%emt 0:03:45]} 35. Rxe4 {[%emt 0:00:08]} fxe4 {[%emt 0:00:12]} 36. Kxf2 {[%emt 0:00:03]} hxg5 {[%emt 0:00:44]} 37. b3 {[%emt 0:00:20]} Rd2+ {[%emt 0:00:15]} 38. Ke3 {[%emt 0:00:06]} Rxa2 {[%emt 0:00:06]} 39. g4 {[%emt 0:01:16]} Kf8 {[%emt 0:00:17]} 40. b4 {[%emt 0:00:00]} Ke8 {[%emt 0:00:00]} 41. c5 {[%emt 0:01:04]} a6 {[%emt 0:00:32]} 42. Kd4 {[%emt 0:00:16]} Re2 {[%emt 0:00:08]} 0-1

[Event "58th Akiba Rubinstein B 2022"]
[Site "Polanica-Zdroj"]
[Date "2022.08.18"]
[Round "6.10"]
[White "Sypien, Natan"]
[Black "Wilk, Aleksander"]
[Result "1-0"]
[ECO "B03"]
[WhiteElo "1780"]
[BlackElo "1569"]
[Annotator "NA RC"]
[PlyCount "83"]
[EventDate "2022.08.13"]
[EventCountry "POL"]
[SourceTitle "playchess.com"]
[Source "ChessBase"]
[SourceQuality "1"]
[TimeControl "40/5400+30:1800+30"]

1. e4 {[%emt 0:00:01]} Nf6 {[%emt 0:00:04]} 2. e5 {[%emt 0:00:14]} Nd5 {[%emt 0:00:04]} 3. d4 {[%emt 0:00:34]} d6 {[%emt 0:00:03]} 4. c4 {[%emt 0:00:57]} Nb6 {[%emt 0:00:07]} 5. f4 {[%emt 0:01:08]} dxe5 {[%emt 0:00:07]} 6. fxe5 {[%emt 0:00:17]} g6 {[%emt 0:00:02]} 7. Be3 {[%emt 0:02:36]} Bg7 {[%emt 0:00:22]} 8. Nc3 {[%emt 0:08:34]} O-O {[%emt 0:01:31]} 9. Nf3 {[%emt 0:03:55]} Bg4 {[%emt 0:00:38]} 10. h3 {[%emt 0:04:49]} Bxf3 {[%emt 0:06:15]} 11. Qxf3 {[%emt 0:00:07]} c6 {[%emt 0:00:35]} 12. O-O-O {[%emt 0:08:48]} Qc7 {[%emt 0:14:19]} 13. h4 {[%emt 0:12:41]} c5 {[%emt 0:12:50]} 14. h5 {[%emt 0:00:49]} cxd4 {[%emt 0:00:32]} 15. Bxd4 {[%emt 0:00:14]} Nc6 {[%emt 0:04:10]} 16. Nb5 {[%emt 0:08:26]} Nxd4 {[%emt 0:05:05]} 17. Nxc7 {[%emt 0:00:09]} Nxf3 {[%emt 0:00:03]} 18. Nxa8 {[%emt 0:00:09]} Nxe5 {[%emt 0:02:46]} 19. Nxb6 {[%emt 0:01:04]} axb6 {[%emt 0:00:03]} 20. h6 {[%emt 0:14:06]} Bf6 {[%emt 0:00:46]} 21. Be2 {[%emt 0:00:02]} Rc8 {[%emt 0:00:12]} 22. Kb1 {[%emt 0:02:34]} Kf8 {[%emt 0:00:14]} 23. Rhf1 {[%emt 0:06:40]} Ke8 {[%emt 0:01:33]} 24. b3 {[%emt 0:01:15]} Bh8 {[%emt 0:03:16]} 25. Rd5 {[%emt 0:02:01]} Nc6 {[%emt 0:02:38]} 26. Rfd1 {[%emt 0:01:23]} Ra8 {[%emt 0:05:05]} 27. a4 {[%emt 0:01:38]} Ne5 {[%emt 0:02:35]} 28. c5 {[%emt 0:03:15]} e6 {[%emt 0:00:41]} 29. Bb5+ {[%emt 0:00:04]} Ke7 {[%emt 0:00:11]} 30. Rd7+ {[%emt 0:00:25]} Nxd7 {[%emt 0:00:19]} 31. Rxd7+ {[%emt 0:00:02]} Kf8 {[%emt 0:00:28]} 32. cxb6 {[%emt 0:00:40]} Rb8 {[%emt 0:00:37]} 33. Kc2 {[%emt 0:05:51]} Bf6 {[%emt 0:01:37]} 34. Kd3 {[%emt 0:00:51]} Rd8 {[%emt 0:00:41]} 35. Kc4 {[%emt 0:00:58]} Rc8+ {[%emt 0:01:51]} 36. Rc7 {[%emt 0:00:16]} Rb8 {[%emt 0:00:05]} 37. Bd7 {[%emt 0:00:54]} Bd8 {[%emt 0:01:54]} 38. Kb5 {[%emt 0:01:11]} e5 {[%emt 0:01:42]} 39. Rc8 {[%emt 0:01:04]} Rxc8 {[%emt 0:00:07]} 40. Bxc8 {[%emt 0:00:00]} f5 {[%emt 0:00:00]} 41. Bxb7 {[%emt 0:00:27]} e4 {[%emt 0:00:29]} 42. a5 {[%emt 0:00:15]} 1-0

[Event "58th Akiba Rubinstein B 2022"]
[Site "Polanica-Zdroj"]
[Date "2022.08.18"]
[Round "6.11"]
[White "Terkiewicz, Bruno"]
[Black "Hury, Tymoteusz"]
[Result "1-0"]
[ECO "D31"]
[WhiteElo "1473"]
[BlackElo "1679"]
[Annotator "NA RC"]
[PlyCount "109"]
[EventDate "2022.08.13"]
[EventCountry "POL"]
[SourceTitle "playchess.com"]
[Source "ChessBase"]
[SourceQuality "1"]
[TimeControl "40/5400+30:1800+30"]

1. d4 {[%emt 0:00:01]} d5 {[%emt 0:00:05]} 2. c4 {[%emt 0:00:02]} e6 {[%emt 0:00:04]} 3. Nc3 {[%emt 0:00:03]} Be7 {[%emt 0:00:16]} 4. Nf3 {[%emt 0:00:18]} Nf6 {[%emt 0:00:32]} 5. cxd5 {[%emt 0:00:05]} exd5 {[%emt 0:00:37]} 6. Bg5 {[%emt 0:00:05]} c6 {[%emt 0:01:48]} 7. e3 {[%emt 0:00:32]} Bf5 {[%emt 0:02:00]} 8. Bd3 {[%emt 0:02:24]} Bxd3 {[%emt 0:01:28]} 9. Qxd3 {[%emt 0:00:05]} Nbd7 {[%emt 0:02:24]} 10. O-O {[%emt 0:00:10]} O-O {[%emt 0:01:45]} 11. Rab1 {[%emt 0:00:18]} a5 {[%emt 0:04:06]} 12. Qc2 {[%emt 0:08:52]} Re8 {[%emt 0:04:15]} 13. a3 {[%emt 0:01:25]} Nb6 {[%emt 0:17:03]} 14. Ne5 {[%emt 0:04:20]} Nfd7 {[%emt 0:01:39]} 15. Bxe7 {[%emt 0:02:16]} Qxe7 {[%emt 0:00:37]} 16. Nxd7 {[%emt 0:00:07]} Qxd7 {[%emt 0:01:20]} 17. Na4 {[%emt 0:00:30]} Nc4 {[%emt 0:05:04]} 18. Nc5 {[%emt 0:10:04]} Qe7 {[%emt 0:06:06]} 19. Ra1 {[%emt 0:05:21]} b6 {[%emt 0:09:51]} 20. Na4 {[%emt 0:02:29]} b5 {[%emt 0:03:21]} 21. Nc5 {[%emt 0:00:17]} a4 {[%emt 0:00:31]} 22. Rfc1 {[%emt 0:00:41]} g6 {[%emt 0:03:48]} 23. b3 {[%emt 0:01:49]} axb3 {[%emt 0:00:21]} 24. Qxb3 {[%emt 0:00:05]} f5 {[%emt 0:06:16]} 25. a4 {[%emt 0:07:37]} f4 {[%emt 0:03:33]} 26. axb5 {[%emt 0:12:17]} Rxa1 {[%emt 0:07:08]} 27. Rxa1 {[%emt 0:00:10]} fxe3 {[%emt 0:00:51]} 28. fxe3 {[%emt 0:02:18]} Rb8 {[%emt 0:08:42]} 29. e4 {[%emt 0:11:04]} Rxb5 {[%emt 0:01:50]} 30. Qh3 {[%emt 0:01:45]} Rb8 {[%emt 0:02:46]} 31. e5 {[%emt 0:03:48]} Rd8 {[%emt 0:03:37]} 32. Qc3 {[%emt 0:18:19]} Qh4 {[%emt 0:01:21]} 33. Rf1 {[%emt 0:02:37]} Ra8 {[%emt 0:00:55]} 34. Ne6 {[%emt 0:02:33]} Qg4 {[%emt 0:00:16]} 35. Nf4 {[%emt 0:00:29]} Rf8 {[%emt 0:01:10]} 36. h3 {[%emt 0:02:04]} Qg5 {[%emt 0:00:23]} 37. g3 {[%emt 0:00:49]} h5 {[%emt 0:00:35]} 38. Kh2 {[%emt 0:00:35]} Rb8 {[%emt 0:00:25]} 39. Rf2 {[%emt 0:00:27]} h4 {[%emt 0:00:25]} 40. gxh4 {[%emt 0:00:00]} Qxh4 {[%emt 0:00:00]} 41. Qg3 {[%emt 0:05:26]} Qxg3+ {[%emt 0:00:13]} 42. Kxg3 {[%emt 0:01:15]} Rb3+ {[%emt 0:08:32]} 43. Kh4 {[%emt 0:04:03]} Re3 {[%emt 0:10:38]} 44. Nxg6 {[%emt 0:03:44]} Kg7 {[%emt 0:00:27]} 45. Nf4 {[%emt 0:01:57]} c5 {[%emt 0:03:22]} 46. Ne6+ {[%emt 0:01:05]} Kh7 {[%emt 0:00:58]} 47. Nxc5 {[%emt 0:01:09]} Na3 {[%emt 0:00:58]} 48. Rf7+ {[%emt 0:00:39]} Kg8 {[%emt 0:00:51]} 49. Rd7 {[%emt 0:00:14]} Nc2 {[%emt 0:01:51]} 50. Rxd5 {[%emt 0:00:29]} Nxd4 {[%emt 0:00:06]} 51. Rxd4 {[%emt 0:00:30]} Rxe5 {[%emt 0:00:01]} 52. Rg4+ {[%emt 0:00:34]} Kh7 {[%emt 0:00:08]} 53. Nd7 {[%emt 0:00:20]} Rf5 {[%emt 0:00:13]} 54. Rg5 {[%emt 0:00:36]} Rf3 {[%emt 0:00:14]} 55. Kg4 {[%emt 0:00:12]} 1-0

[Event "58th Akiba Rubinstein B 2022"]
[Site "Polanica-Zdroj"]
[Date "2022.08.18"]
[Round "6.12"]
[White "Buchholz, Maja"]
[Black "Rzenca, Jerzy"]
[Result "1-0"]
[ECO "B19"]
[WhiteElo "1879"]
[BlackElo "1668"]
[Annotator "NA RC"]
[PlyCount "51"]
[EventDate "2022.08.13"]
[EventCountry "POL"]
[SourceTitle "playchess.com"]
[Source "ChessBase"]
[SourceQuality "1"]
[TimeControl "40/5400+30:1800+30"]

1. e4 {[%emt 0:00:04]} c6 {[%emt 0:00:02]} 2. d4 {[%emt 0:00:05]} d5 {[%emt 0:00:03]} 3. Nc3 {[%emt 0:00:10]} dxe4 {[%emt 0:00:03]} 4. Nxe4 {[%emt 0:00:07]} Bf5 {[%emt 0:00:03]} 5. Ng3 {[%emt 0:00:08]} Bg6 {[%emt 0:00:05]} 6. h4 {[%emt 0:00:06]} h6 {[%emt 0:00:03]} 7. Nf3 {[%emt 0:00:07]} Nd7 {[%emt 0:00:04]} 8. h5 {[%emt 0:00:09]} Bh7 {[%emt 0:00:01]} 9. Bd3 {[%emt 0:00:15]} Bxd3 {[%emt 0:00:05]} 10. Qxd3 {[%emt 0:00:05]} e6 {[%emt 0:00:03]} 11. Bd2 {[%emt 0:00:11]} Ngf6 {[%emt 0:00:04]} 12. O-O-O {[%emt 0:00:13]} Be7 {[%emt 0:00:04]} 13. Kb1 {[%emt 0:00:08]} Qb6 {[%emt 0:00:04]} 14. c4 {[%emt 0:00:35]} O-O-O {[%emt 0:07:25]} 15. Bf4 {[%emt 0:04:38]} Ng4 {[%emt 0:02:26]} 16. Qc2 {[%emt 0:07:03]} c5 {[%emt 0:34:29]} 17. Ne4 {[%emt 0:22:25]} f5 {[%emt 0:04:50]} 18. Nc3 {[%emt 0:04:15]} Bd6 {[%emt 0:10:30]} 19. Na4 {[%emt 0:06:45]} Qc7 {[%emt 0:07:31]} 20. Bxd6 {[%emt 0:01:14]} Qxd6 {[%emt 0:00:06]} 21. dxc5 {[%emt 0:00:48]} Qc7 {[%emt 0:06:08]} 22. b4 {[%emt 0:02:47]} e5 {[%emt 0:04:39]} 23. Nc3 {[%emt 0:03:16]} e4 {[%emt 0:04:22]} 24. Nd5 {[%emt 0:02:15]} Qb8 {[%emt 0:00:46]} 25. Ne7+ {[%emt 0:02:47]} Kc7 {[%emt 0:00:01]} 26. Nd4 {[%emt 0:00:13]} 1-0

[Event "58th Akiba Rubinstein B 2022"]
[Site "Polanica-Zdroj"]
[Date "2022.08.18"]
[Round "6.13"]
[White "Ochenduszko, Bartosz"]
[Black "Lewandrowski, Tomasz"]
[Result "0-1"]
[ECO "D31"]
[WhiteElo "1546"]
[BlackElo "1902"]
[Annotator "NA RC"]
[PlyCount "78"]
[EventDate "2022.08.13"]
[EventCountry "POL"]
[SourceTitle "playchess.com"]
[Source "ChessBase"]
[SourceQuality "1"]
[TimeControl "40/5400+30:1800+30"]

1. d4 {[%emt 0:00:03]} d5 {[%emt 0:00:06]} 2. c4 {[%emt 0:00:09]} e6 {[%emt 0:00:05]} 3. Nc3 {[%emt 0:00:09]} Be7 {[%emt 0:00:08]} 4. Bf4 {[%emt 0:00:20]} Nf6 {[%emt 0:01:41]} 5. e3 {[%emt 0:00:51]} O-O {[%emt 0:04:55]} 6. h3 {[%emt 0:05:47]} b6 {[%emt 0:02:34]} 7. Nf3 {[%emt 0:06:02]} Bb7 {[%emt 0:01:56]} 8. Rc1 c5 {[%emt 0:05:40]} 9. cxd5 {[%emt 0:00:51]} cxd4 {[%emt 0:00:30]} 10. exd4 {[%emt 0:00:30]} Nxd5 {[%emt 0:00:30]} 11. Nxd5 {[%emt 0:00:30]} Qxd5 {[%emt 0:01:34]} 12. Bc4 {[%emt 0:12:18]} Qe4+ {[%emt 0:02:00]} 13. Be3 {[%emt 0:00:40]} Bb4+ {[%emt 0:03:22]} 14. Kf1 {[%emt 0:06:17]} Rc8 {[%emt 0:01:22]} 15. Bd3 {[%emt 0:00:15]} Rxc1 {[%emt 0:00:33]} 16. Bxc1 {[%emt 0:02:23]} Qc6 {[%emt 0:04:38]} 17. Qc2 {[%emt 0:14:54]} Ba6 {[%emt 0:00:36]} 18. Qb1 {[%emt 0:00:09]} Bxd3+ {[%emt 0:00:20]} 19. Qxd3 {[%emt 0:00:08]} Qxc1+ {[%emt 0:02:58]} 20. Ke2 {[%emt 0:10:27]} Qc8 {[%emt 0:00:49]} 21. Ng5 {[%emt 0:00:28]} Qa6 {[%emt 0:03:05]} 22. Rc1 {[%emt 0:00:10]} Qxd3+ {[%emt 0:00:10]} 23. Kxd3 {[%emt 0:00:46]} Na6 {[%emt 0:00:17]} 24. a3 {[%emt 0:00:21]} Be7 {[%emt 0:01:25]} 25. Nf3 {[%emt 0:00:29]} Bf6 {[%emt 0:01:00]} 26. b4 {[%emt 0:01:12]} Rd8 {[%emt 0:02:39]} 27. b5 {[%emt 0:00:15]} Nc5+ {[%emt 0:00:46]} 28. Ke3 Bxd4+ {[%emt 0:00:07]} 29. Nxd4 {[%emt 0:00:56]} Rxd4 {[%emt 0:00:07]} 30. Kxd4 {[%emt 0:00:03]} Nb3+ {[%emt 0:00:30]} 31. Ke5 {[%emt 0:00:30]} Nxc1 32. Kd6 Kf8 {[%emt 0:01:27]} 33. Kc7 {[%emt 0:01:38]} Ke7 {[%emt 0:00:16]} 34. Kb7 {[%emt 0:00:14]} Kd7 {[%emt 0:00:22]} 35. Kxa7 {[%emt 0:00:10]} Kc7 36. a4 {[%emt 0:01:00]} Nb3 {[%emt 0:00:17]} 37. Ka8 {[%emt 0:00:36]} Nc5 {[%emt 0:01:34]} 38. a5 {[%emt 0:00:08]} bxa5 {[%emt 0:00:10]} 39. Ka7 {[%emt 0:00:02]} a4 {[%emt 0:00:34]} 0-1

[Event "58th Akiba Rubinstein B 2022"]
[Site "Polanica-Zdroj"]
[Date "2022.08.18"]
[Round "6.14"]
[White "Penza, Denis"]
[Black "Jedrzejko, Martyna"]
[Result "1/2-1/2"]
[ECO "D64"]
[WhiteElo "1836"]
[BlackElo "1533"]
[Annotator "NA RC"]
[PlyCount "82"]
[EventDate "2022.08.13"]
[EventCountry "POL"]
[SourceTitle "playchess.com"]
[Source "ChessBase"]
[SourceQuality "1"]
[TimeControl "40/5400+30:1800+30"]

1. d4 {[%emt 0:00:02]} d5 {[%emt 0:00:09]} 2. c4 {[%emt 0:00:37]} c6 {[%emt 0:00:08]} 3. Nf3 {[%emt 0:00:06]} Nf6 {[%emt 0:00:30]} 4. Nc3 {[%emt 0:00:05]} e6 {[%emt 0:00:16]} 5. Bg5 {[%emt 0:00:21]} Nbd7 {[%emt 0:00:15]} 6. e3 {[%emt 0:00:05]} Be7 {[%emt 0:00:19]} 7. Qc2 {[%emt 0:00:41]} O-O {[%emt 0:00:55]} 8. Rc1 {[%emt 0:00:06]} h6 {[%emt 0:00:49]} 9. Bh4 {[%emt 0:00:05]} dxc4 {[%emt 0:04:53]} 10. Bxc4 {[%emt 0:00:09]} b5 {[%emt 0:05:14]} 11. Bd3 {[%emt 0:00:56]} a6 {[%emt 0:02:11]} 12. O-O {[%emt 0:02:27]} c5 {[%emt 0:03:24]} 13. Rfd1 {[%emt 0:03:38]} c4 {[%emt 0:03:02]} 14. Be2 {[%emt 0:00:26]} Bb7 {[%emt 0:00:58]} 15. Ne5 {[%emt 0:02:06]} Rc8 {[%emt 0:08:09]} 16. Bf3 {[%emt 0:01:37]} Bxf3 {[%emt 0:00:09]} 17. Nxf3 {[%emt 0:00:09]} Nb6 {[%emt 0:03:35]} 18. e4 {[%emt 0:09:15]} Qc7 {[%emt 0:01:56]} 19. e5 {[%emt 0:09:11]} Nfd5 {[%emt 0:00:42]} 20. Bxe7 {[%emt 0:00:08]} Qxe7 {[%emt 0:00:19]} 21. Ne4 {[%emt 0:01:06]} Nb4 {[%emt 0:01:09]} 22. Qd2 {[%emt 0:01:26]} Nd3 {[%emt 0:04:05]} 23. Ra1 {[%emt 0:05:02]} Rc7 {[%emt 0:06:49]} 24. Ne1 {[%emt 0:03:21]} Nxe1 {[%emt 0:00:52]} 25. Rxe1 {[%emt 0:03:07]} Nd5 {[%emt 0:08:48]} 26. a3 {[%emt 0:03:10]} Rd8 {[%emt 0:02:47]} 27. g3 {[%emt 0:05:24]} Rc6 {[%emt 0:04:33]} 28. Qa5 {[%emt 0:03:34]} Qc7 {[%emt 0:01:01]} 29. Qxc7 {[%emt 0:01:03]} Rxc7 {[%emt 0:00:30]} 30. Nd6 {[%emt 0:01:52]} Nb6 {[%emt 0:01:42]} 31. Kf1 {[%emt 0:03:02]} Nc8 {[%emt 0:01:55]} 32. Nxc8 {[%emt 0:02:09]} Rcxc8 {[%emt 0:00:29]} 33. Re4 {[%emt 0:04:29]} a5 {[%emt 0:04:37]} 34. Rc1 {[%emt 0:02:46]} Kf8 {[%emt 0:01:06]} 35. Ke2 {[%emt 0:04:18]} Ke7 {[%emt 0:00:32]} 36. Ke3 {[%emt 0:02:41]} b4 {[%emt 0:01:46]} 37. Kd2 {[%emt 0:02:27]} Rd7 {[%emt 0:00:21]} 38. axb4 {[%emt 0:01:34]} axb4 39. Ra1 {[%emt 0:00:31]} Rb7 {[%emt 0:05:48]} 40. Ree1 {[%emt 0:00:00]} Rd7 {[%emt 0:00:00]} 41. Ke3 {[%emt 0:09:48]} c3 {[%emt 0:05:21]} 1/2-1/2

[Event "58th Akiba Rubinstein B 2022"]
[Site "Polanica-Zdroj"]
[Date "2022.08.18"]
[Round "6.15"]
[White "Wesolek, Krzysztof"]
[Black "Nowak, Roksana"]
[Result "0-1"]
[ECO "C50"]
[WhiteElo "1747"]
[BlackElo "1779"]
[Annotator "NA RC"]
[PlyCount "70"]
[EventDate "2022.08.13"]
[EventCountry "POL"]
[SourceTitle "playchess.com"]
[Source "ChessBase"]
[SourceQuality "1"]
[TimeControl "40/5400+30:1800+30"]

1. e4 {[%emt 0:00:03]} e5 {[%emt 0:00:04]} 2. Nf3 {[%emt 0:00:04]} Nc6 {[%emt 0:00:04]} 3. Bc4 {[%emt 0:00:05]} Nf6 {[%emt 0:01:01]} 4. d3 {[%emt 0:00:04]} Bc5 {[%emt 0:00:12]} 5. c3 {[%emt 0:00:07]} d6 {[%emt 0:00:20]} 6. h3 {[%emt 0:02:17]} a6 {[%emt 0:00:26]} 7. a4 {[%emt 0:00:42]} Ba7 {[%emt 0:00:29]} 8. O-O {[%emt 0:04:36]} h6 {[%emt 0:00:13]} 9. Re1 {[%emt 0:01:34]} g5 {[%emt 0:01:04]} 10. Be3 {[%emt 0:18:48]} g4 {[%emt 0:01:35]} 11. hxg4 {[%emt 0:00:10]} Nxg4 {[%emt 0:01:46]} 12. Bxa7 {[%emt 0:00:37]} Nxa7 {[%emt 0:00:22]} 13. d4 {[%emt 0:01:00]} Nc6 {[%emt 0:01:44]} 14. Nbd2 {[%emt 0:10:40]} Qf6 {[%emt 0:05:41]} 15. Nf1 {[%emt 0:05:29]} h5 {[%emt 0:05:35]} 16. N1h2 {[%emt 0:21:10]} Rg8 {[%emt 0:02:44]} 17. Bf1 {[%emt 0:15:12]} Ne7 {[%emt 0:10:25]} 18. Qd2 {[%emt 0:02:38]} Nxh2 {[%emt 0:02:25]} 19. Kxh2 {[%emt 0:03:44]} Bg4 {[%emt 0:02:08]} 20. Be2 {[%emt 0:01:58]} Bxf3 {[%emt 0:02:53]} 21. Bxf3 {[%emt 0:00:14]} Ng6 {[%emt 0:01:40]} 22. Rh1 {[%emt 0:01:51]} Nh4 {[%emt 0:03:58]} 23. Qe3 {[%emt 0:01:27]} exd4 {[%emt 0:08:55]} 24. cxd4 {[%emt 0:00:09]} Nxf3+ {[%emt 0:02:55]} 25. Qxf3 {[%emt 0:00:10]} Qxd4 {[%emt 0:00:55]} 26. Qf5 {[%emt 0:01:05]} Qg7 {[%emt 0:01:23]} 27. Rhg1 {[%emt 0:01:49]} Qh6 {[%emt 0:02:12]} 28. f4 {[%emt 0:02:33]} Qg7 {[%emt 0:04:16]} 29. e5 {[%emt 0:03:42]} Qg3+ {[%emt 0:00:49]} 30. Kh1 {[%emt 0:00:05]} Rg4 {[%emt 0:00:06]} 31. Ra3 {[%emt 0:01:20]} Rh4+ {[%emt 0:00:19]} 32. Qh3 {[%emt 0:00:05]} Rxh3+ {[%emt 0:00:12]} 33. gxh3 {[%emt 0:00:05]} Qxf4 {[%emt 0:03:32]} 34. Rg8+ {[%emt 0:00:14]} Kd7 {[%emt 0:00:21]} 35. Rxa8 {[%emt 0:01:10]} Qc1+ {[%emt 0:00:07]} 0-1

[Event "58th Akiba Rubinstein B 2022"]
[Site "Polanica-Zdroj"]
[Date "2022.08.19"]
[Round "7.1"]
[White "Jaworski, Tymon"]
[Black "Chmiel, Marcin"]
[Result "0-1"]
[ECO "B73"]
[WhiteElo "1701"]
[BlackElo "2192"]
[Annotator "NA RC"]
[PlyCount "80"]
[EventDate "2022.08.13"]
[EventCountry "POL"]
[SourceTitle "playchess.com"]
[Source "ChessBase"]
[SourceQuality "1"]
[TimeControl "40/5400+30:1800+30"]

1. e4 {[%emt 0:00:03]} c5 {[%emt 0:00:32]} 2. Nf3 {[%emt 0:00:08]} d6 {[%emt 0:00:06]} 3. d4 {[%emt 0:00:17]} cxd4 {[%emt 0:00:05]} 4. Nxd4 {[%emt 0:00:11]} Nf6 {[%emt 0:00:05]} 5. Nc3 {[%emt 0:00:32]} Nc6 {[%emt 0:00:06]} 6. Be2 {[%emt 0:00:52]} g6 {[%emt 0:00:09]} 7. O-O {[%emt 0:01:15]} Bg7 {[%emt 0:00:06]} 8. Be3 {[%emt 0:00:36]} O-O {[%emt 0:00:08]} 9. h3 {[%emt 0:01:01]} Bd7 {[%emt 0:00:32]} 10. Qd2 {[%emt 0:03:11]} Rc8 {[%emt 0:00:29]} 11. f4 {[%emt 0:09:12]} a6 {[%emt 0:00:14]} 12. Bf3 {[%emt 0:07:28]} b5 {[%emt 0:07:58]} 13. Nxc6 {[%emt 0:07:40]} Bxc6 {[%emt 0:00:12]} 14. Nd5 {[%emt 0:00:29]} Bxd5 {[%emt 0:03:57]} 15. exd5 {[%emt 0:00:07]} Nd7 {[%emt 0:01:33]} 16. c3 {[%emt 0:02:17]} Nb6 {[%emt 0:01:19]} 17. Be2 {[%emt 0:02:00]} Nc4 {[%emt 0:05:20]} 18. Bxc4 {[%emt 0:00:37]} Rxc4 {[%emt 0:00:53]} 19. f5 {[%emt 0:00:40]} a5 {[%emt 0:10:20]} 20. fxg6 {[%emt 0:07:53]} hxg6 {[%emt 0:00:12]} 21. Bh6 {[%emt 0:01:28]} Bxh6 {[%emt 0:14:04]} 22. Qxh6 {[%emt 0:01:01]} b4 {[%emt 0:01:55]} 23. Rf3 {[%emt 0:04:05]} bxc3 {[%emt 0:06:31]} 24. bxc3 {[%emt 0:05:11]} Qc8 {[%emt 0:05:43]} 25. Re1 {[%emt 0:07:57]} Rxc3 {[%emt 0:06:03]} 26. Rf4 {[%emt 0:04:36]} Rc4 {[%emt 0:02:01]} 27. Ree4 {[%emt 0:00:42]} Qc5+ {[%emt 0:03:42]} 28. Kh2 {[%emt 0:05:48]} Rxe4 {[%emt 0:01:31]} 29. Rxe4 {[%emt 0:00:09]} Qxd5 {[%emt 0:00:36]} 30. Rxe7 {[%emt 0:00:57]} Qxa2 {[%emt 0:01:08]} 31. Qf4 {[%emt 0:02:43]} d5 {[%emt 0:05:01]} 32. h4 {[%emt 0:01:56]} Qc4 {[%emt 0:01:05]} 33. Qg5 {[%emt 0:00:45]} Qc6 {[%emt 0:09:34]} 34. h5 {[%emt 0:05:07]} Qd6+ {[%emt 0:00:53]} 35. Kh3 {[%emt 0:00:49]} Rc8 {[%emt 0:03:14]} 36. Re5 {[%emt 0:04:57]} Kg7 {[%emt 0:03:11]} 37. h6+ {[%emt 0:03:53]} Kh7 {[%emt 0:00:25]} 38. g3 {[%emt 0:04:08]} f6 {[%emt 0:02:27]} 39. Rxd5 {[%emt 0:00:10]} Qe6+ {[%emt 0:00:36]} 40. Qg4 {[%emt 0:00:00]} Qxd5 {[%emt 0:00:00]} 0-1

[Event "58th Akiba Rubinstein B 2022"]
[Site "Polanica-Zdroj"]
[Date "2022.08.19"]
[Round "7.2"]
[White "Zerebiec, Maurycy"]
[Black "Sypien, Natan"]
[Result "1-0"]
[ECO "A11"]
[WhiteElo "1915"]
[BlackElo "1780"]
[Annotator "NA RC"]
[PlyCount "50"]
[EventDate "2022.08.13"]
[EventCountry "POL"]
[SourceTitle "playchess.com"]
[Source "ChessBase"]
[SourceQuality "1"]
[TimeControl "40/5400+30:1800+30"]

1. c4 {[%emt 0:00:41]} c6 {[%emt 0:00:08]} 2. Nc3 {[%emt 0:00:36]} d5 {[%emt 0:00:15]} 3. cxd5 {[%emt 0:00:24]} cxd5 {[%emt 0:00:08]} 4. d4 {[%emt 0:00:01]} Nf6 {[%emt 0:00:21]} 5. Nf3 {[%emt 0:00:27]} Nc6 {[%emt 0:00:07]} 6. Bf4 {[%emt 0:00:04]} a6 {[%emt 0:00:57]} 7. e3 {[%emt 0:00:14]} Bg4 {[%emt 0:01:52]} 8. Bd3 {[%emt 0:01:18]} Rc8 {[%emt 0:05:01]} 9. O-O {[%emt 0:00:51]} e6 {[%emt 0:00:58]} 10. Rc1 {[%emt 0:00:23]} Be7 {[%emt 0:05:40]} 11. Na4 {[%emt 0:00:55]} Ne4 {[%emt 0:21:12]} 12. Qb3 {[%emt 0:12:35]} Nb4 {[%emt 0:39:11]} 13. Bxe4 {[%emt 0:14:20]} dxe4 {[%emt 0:01:14]} 14. Ne5 {[%emt 0:00:28]} Be2 {[%emt 0:01:16]} 15. Rfe1 {[%emt 0:04:41]} Rxc1 {[%emt 0:04:58]} 16. Rxc1 {[%emt 0:00:32]} Nd3 {[%emt 0:05:03]} 17. Nxd3 {[%emt 0:02:04]} exd3 {[%emt 0:00:20]} 18. Nc3 {[%emt 0:00:29]} Qa5 {[%emt 0:06:52]} 19. Nxe2 {[%emt 0:18:21]} dxe2 {[%emt 0:00:02]} 20. Qc3 {[%emt 0:00:01]} Bb4 {[%emt 0:01:41]} 21. Qc8+ {[%emt 0:05:22]} Qd8 {[%emt 0:00:06]} 22. Qxb7 {[%emt 0:00:34]} e1=Q+ {[%emt 0:00:03]} 23. Rxe1 {[%emt 0:00:01]} Bxe1 {[%emt 0:00:16]} 24. Qc6+ {[%emt 0:00:11]} Kf8 {[%emt 0:01:10]} 25. Bc7 {[%emt 0:01:54]} Ke7 1-0